Workbook

Sheet Info & Summary
A1: Instrument Information:
A3: Instrument Type | C3: Serial Number | E3: Instrument Name
A4: RPM | C4: enter S/N | E4: enter name
A6: Current Calibration Summary:
A8: TPC
A9: ='Current Calibrations'!$K$32 -> Zero | B9: ='Current Calibrations'!$L$32 -> -2828.850369 | C9: ='Current Calibrations'!$M$32 -> mV
A10: ='Current Calibrations'!$K$33 -> Slope | B10: ='Current Calibrations'!$L$33 -> 402.1555774 | C10: ='Current Calibrations'!$M$33 -> mV/Mpa
A11: Arm Springs
A12: ='Current Calibrations'!$A$32 -> Zero | B12: ='Current Calibrations'!$B$32 -> -2145.118428 | C12: ='Current Calibrations'!$C$32 -> mV | D12: ='Current Calibrations'!$E$32 -> -2349.762408 | E12: ='Current Calibrations'!$F$32 -> mV | F12: ='Current Calibrations'!$H$32 -> -2285.528256 | G12: ='Current Calibrations'!$I$32 -> mV
A13: ='Current Calibrations'!$A$33 -> Slope | B13: ='Current Calibrations'!$B$33 -> 352.4788698 | C13: ='Current Calibrations'!$C$33 -> mV/mm | D13: ='Current Calibrations'!$E$33 -> 335.3611057 | E13: ='Current Calibrations'!$F$33 -> mV/mm | F13: ='Current Calibrations'!$H$33 -> 339.1609337 | G13: ='Current Calibrations'!$I$33 -> mV/mm

Sheet Current Calibrations
A1: Calibration Date | C1: Operator | E1: Instrument Type | G1: Serial Number | I1: Instrument Name
E2: ='Info & Summary'!A4 -> RPM | G2: ='Info & Summary'!C4 -> enter S/N | I2: ='Info & Summary'!E4 -> enter name
A3: Notes:
E7: Arm Springs | K7: Pressure Cell
A9: mm | B9: Arm 1 | C9: Linearity | D9: Hysteresis | E9: Arm 2 | F9: Linearity | G9: Hysteresis | H9: Arm 3 | I9: Linearity | J9: Hysteresis | K9: Mpa | L9: TPC | M9: Linearity | N9: Hysteresis
B10: (mV) | C10: (%) | D10: (%) | E10: (mV) | F10: (%) | G10: (%) | H10: (mV) | I10: (%) | J10: (%) | L10: (mV) | M10: (%) | N10: (%)
A11: 0 | B11: -2165.6 | C11: =(B12-B11)*100/(($A12-$A11)*B$33) -> 104.8573494 | D11: =(B11-B31)*100/(B$21-B$12) -> 0.1707239962 | E11: -2365 | F11: =(E12-E11)*100/(($A12-$A11)*E$33) -> 104.0669279 | G11: =(E11-E31)*100/(E$21-E$12) -> 0.1330671989 | H11: -2300 | I11: =(H12-H11)*100/(($A12-$A11)*H$33) -> 104.6700739 | J11: =(H11-H31)*100/(H$21-H$12) -> 0.2958579882 | K11: 0 | L11: -2775.6 | M11: =(L12-L11)*100/(($K12-$K11)*L$33) -> 86.08608694 | N11: =(L11-L31)*100/(L$21-L$11) -> -0.01751182048
A12: 1 | B12: -1796 | C12: 104.9708314 | D12: =(B12-B30)*100/(B$21-B$12) -> 0.3161555485 | E12: -2016 | F12: 103.7687419 | G12: =(E12-E30)*100/(E$21-E$12) -> 0.3659347971 | H12: -1945 | I12: 104.0803834 | J12: =(H12-H30)*100/(H$21-H$12) -> 0.4930966469 | K12: 1 | L12: -2429.4 | M12: =(L13-L12)*100/(($K13-$K12)*L$33) -> 99.56345815 | N12: =(L12-L30)*100/(L$21-L$11) -> 0.3302229005
A13: 2 | B13: -1426 | C13: 102.4174868 | D13: =(B13-B29)*100/(B$21-B$12) -> 0.4742333228 | E13: -1668 | F13: 101.9796256 | G13: =(E13-E29)*100/(E$21-E$12) -> 0.499001996 | H13: -1592 | I13: 102.3113117 | J13: =(H13-H29)*100/(H$21-H$12) -> 0.6574621959 | K13: 2 | L13: -2029 | M13: =(L14-L13)*100/(($K14-$K13)*L$33) -> 97.15145629 | N13: =(L13-L29)*100/(L$21-L$11) -> 0.3152127686
A14: 3 | B14: -1065 | C14: 99.58043732 | D14: =(B14-B28)*100/(B$21-B$12) -> 0.5374644325 | E14: -1326 | F14: 100.7868815 | G14: =(E14-E28)*100/(E$21-E$12) -> 0.5322687957 | H14: -1245 | I14: 99.95254947 | J14: =(H14-H28)*100/(H$21-H$12) -> 0.7560815253 | K14: 3 | L14: -1638.3 | M14: =(L15-L14)*100/(($K15-$K14)*L$33) -> 99.86185013 | N14: =(L14-L28)*100/(L$21-L$11) -> 0.08005403647
A15: 4 | B15: -714 | C15: 99.58043732 | D15: =(B15-B27)*100/(B$21-B$12) -> 0.4426177679 | E15: -988 | F15: 99.89232334 | G15: =(E15-E27)*100/(E$21-E$12) -> 0.5988023952 | H15: -906 | I15: 99.36285891 | J15: =(H15-H27)*100/(H$21-H$12) -> 0.7560815253 | K15: 4 | L15: -1236.7 | M15: =(L16-L15)*100/(($K16-$K15)*L$33) -> 99.58832415 | N15: =(L15-L27)*100/(L$21-L$11) -> 0.1576063843
A16: 5 | B16: -363 | C16: 99.01302742 | D16: =(B16-B26)*100/(B$21-B$12) -> 0.5058488776 | E16: -653 | F16: 98.40139314 | G16: =(E16-E26)*100/(E$21-E$12) -> 0.5655355955 | H16: -569 | I16: 99.06801363 | J16: =(H16-H26)*100/(H$21-H$12) -> 0.6903353057 | K16: 5 | L16: -836.2 | M16: =(L17-L16)*100/(($K17-$K16)*L$33) -> 101.2046141 | N16: =(L16-L26)*100/(L$21-L$11) -> 0.062542216
A17: 6 | B17: -14 | C17: 97.31079773 | D17: =(B17-B25)*100/(B$21-B$12) -> 0.5058488776 | E17: -323 | F17: 98.34175593 | G17: =(E17-E25)*100/(E$21-E$12) -> 0.5322687957 | H17: -233 | I17: 97.29894196 | J17: =(H17-H25)*100/(H$21-H$12) -> 0.7889546351 | K17: 6 | L17: -429.2 | M17: =(L18-L17)*100/(($K18-$K17)*L$33) -> 103.7160799 | N17: =(L17-L25)*100/(L$21-L$11) -> 0.062542216
A18: 7 | B18: 329 | C18: 97.59450268 | D18: =(B18-B24)*100/(B$21-B$12) -> 0.3793866582 | E18: 6.8 | F18: 97.56647223 | G18: =(E18-E24)*100/(E$21-E$12) -> 0.4823685961 | H18: 97 | I18: 97.88863252 | J18: =(H18-H24)*100/(H$21-H$12) -> 0.5588428665 | K18: 7 | L18: -12.1 | M18: =(L19-L18)*100/(($K19-$K18)*L$33) -> 102.9701 | N18: =(L18-L24)*100/(L$21-L$11) -> 0.1626097616
A19: 8 | B19: 673 | C19: 98.16191258 | D19: =(B19-B23)*100/(B$21-B$12) -> 0.3161555485 | E19: 334 | F19: 97.80502106 | G19: =(E19-E23)*100/(E$21-E$12) -> 0.2994011976 | H19: 429 | I19: 98.1834778 | J19: =(H19-H23)*100/(H$21-H$12) -> 0.3944773176 | K19: 8 | L19: 402 | M19: =(L20-L19)*100/(($K20-$K19)*L$33) -> 101.801398 | N19: =(L19-L23)*100/(L$21-L$11) -> 0.2126435344
A20: 9 | B20: 1019 | C20: 98.72932247 | D20: =(B20-B22)*100/(B$21-B$12) -> 0.1896933291 | E20: 662 | F20: 97.80502106 | G20: =(E20-E22)*100/(E$21-E$12) -> 0.1996007984 | H20: 762 | I20: 98.77316836 | J20: =(H20-H22)*100/(H$21-H$12) -> 0.2958579882 | K20: 9 | L20: 811.4 | M20: =(L21-L20)*100/(($K21-$K20)*L$33) -> 102.025192 | N20: =(L20-L22)*100/(L$21-L$11) -> 0.2801891277
A21: 10 | B21: 1367 | C21: 100.4315522 | E21: 990 | F21: 99.5941373 | H21: 1097 | I21: 101.4267759 | K21: 10 | L21: 1221.7 | M21: =(L22-L21)*100/(($K22-$K21)*L$33) -> 104.8101838
A22: 9 | B22: 1013 | C22: 99.29673237 | E22: 656 | F22: 98.69957918 | H22: 753 | I22: 99.06801363 | K22: 9 | L22: 800.2 | M22: =(L23-L22)*100/(($K23-$K22)*L$33) -> 101.1300161
A23: 8 | B23: 663 | C23: 98.16191258 | E23: 325 | F23: 99.20649544 | H23: 417 | I23: 99.36285891 | K23: 8 | L23: 393.5 | M23: =(L24-L23)*100/(($K24-$K23)*L$33) -> 102.47278
A24: 7 | B24: 317 | C24: 98.44561753 | E24: -7.7 | F24: 98.78903499 | H24: 80 | I24: 99.36285891 | K24: 7 | L24: -18.6 | M24: 102.72144
A25: 6 | B25: -30 | C25: 99.01302742 | E25: -339 | F25: 98.69957918 | H25: -257 | I25: 98.1834778 | K25: 6 | L25: -431.7 | M25: 101.2046141
A26: 5 | B26: -379 | C26: 99.01302742 | E26: -670 | F26: 100.1905094 | H26: -590 | I26: 99.95254947 | K26: 5 | L26: -838.7 | M26: 100.5332321
A27: 4 | B27: -728 | C27: 100.4315522 | E27: -1006 | F27: 100.1905094 | H27: -929 | I27: 99.95254947 | K27: 4 | L27: -1243 | M27: 99.09100418
A28: 3 | B28: -1082 | C28: 101.8500769 | E28: -1342 | F28: 101.6814396 | H28: -1268 | I28: 101.4267759 | K28: 3 | L28: -1641.5 | M28: 99.48886015
A29: 2 | B29: -1441 | C29: 103.5523066 | E29: -1683 | F29: 102.5759977 | H29: -1612 | I29: 102.606157 | K29: 2 | L29: -2041.6 | M29: 99.71265414
A30: 1 | B30: -1806 | C30: 103.5523066 | E30: -2027 | F30: 101.9796256 | H30: -1960 | I30: 102.9010023 | K30: 1 | L30: -2442.6 | M30: 82.62971315
A31: 0 | B31: -2171 | E31: -2369 | H31: -2309 | K31: 0 | L31: -2774.9
A32: Zero | B32: =INTERCEPT(B$11:B$31,$A$11:$A$31) -> -2145.118428 | C32: mV | E32: =INTERCEPT(E$11:E$31,$A$11:$A$31) -> -2349.762408 | F32: mV | H32: =INTERCEPT(H$11:H$31,$A$11:$A$31) -> -2285.528256 | I32: mV | K32: Zero | L32: =INTERCEPT(L$11:L$31,$K$11:$K$31) -> -2828.850369 | M32: mV
A33: Slope | B33: =SLOPE(B$11:B$31,$A$11:$A$31) -> 352.4788698 | C33: mV/mm | E33: =SLOPE(E$11:E$31,$A$11:$A$31) -> 335.3611057 | F33: mV/mm | H33: =SLOPE(H$11:H$31,$A$11:$A$31) -> 339.1609337 | I33: mV/mm | K33: Slope | L33: =SLOPE(L$11:L$31,$K$11:$K$31) -> 402.1555774 | M33: mV/Mpa
A35: Max Output | B35: 2278 | C35: mV | E35: 1857 | F35: mV | H35: 2002 | I35: mV
A36: Min Output | C36: mV | F36: mV | I36: mV
A37: Max Range | B37: =(B35-B32)/B33 -> 12.54860591 | C37: mm | E37: =(E35-E32)/E33 -> 12.54397823 | F37: mm | H37: =(H35-H32)/H33 -> 12.64157463 | I37: mm
A43: Do Not Enter Text Below This Line. | E43: Do Not Enter Text Below This Line. | I43: Do Not Enter Text Below This Line. | M43: Do Not Enter Text Below This Line. | Q43: Do Not Enter Text Below This Line.
A50: mm | B50: Arm 1 | C50: Arm 2 | D50: Arm 3
A51: plot? | B51: TRUE | C51: TRUE | D51: TRUE
A52: 0 | B52: =IF(B$51=TRUE,B11,#N/A) -> -2165.6 | C52: =IF(C$51=TRUE,E11,#N/A) -> -2365 | D52: =IF(D$51=TRUE,H11,#N/A) -> -2300
A53: 1 | B53: -1796 | C53: -2016 | D53: -1945
A54: 2 | B54: -1426 | C54: -1668 | D54: -1592
A55: 3 | B55: -1065 | C55: -1326 | D55: -1245
A56: 4 | B56: -714 | C56: -988 | D56: -906
A57: 5 | B57: -363 | C57: -653 | D57: -569
A58: 6 | B58: -14 | C58: -323 | D58: -233
A59: 7 | B59: 329 | C59: 6.8 | D59: 97
A60: 8 | B60: 673 | C60: 334 | D60: 429
A61: 9 | B61: 1019 | C61: 662 | D61: 762
A62: 10 | B62: 1367 | C62: 990 | D62: 1097
A63: 9 | B63: 1013 | C63: 656 | D63: 753
A64: 8 | B64: 663 | C64: 325 | D64: 417
A65: 7 | B65: 317 | C65: -7.7 | D65: 80
A66: 6 | B66: -30 | C66: -339 | D66: -257
A67: 5 | B67: -379 | C67: -670 | D67: -590
A68: 4 | B68: -728 | C68: -1006 | D68: -929
A69: 3 | B69: -1082 | C69: -1342 | D69: -1268
A70: 2 | B70: -1441 | C70: -1683 | D70: -1612
A71: 1 | B71: -1806 | C71: -2027 | D71: -1960
A72: 0 | B72: -2171 | C72: -2369 | D72: -2309
